[Event "*** Titled Tuesday Blitz"]
[Site "Chess.com"]
[Date "2020.05.05"]
[Round "3"]
[White "kleinebeer98"]
[Black "elisak43"]
[Result "1-0"]
[WhiteElo "2684"]
[BlackElo "2425"]
[TimeControl "180+1"]
[EndTime "10:30:06 PDT"]
[Termination "kleinebeer98 won by checkmate"]

1. e4 {[%clk 0:03:00.9]} 1... e5 {[%clk 0:03:00]} 2. Nf3 {[%clk 0:03:00.5]} 2...
Nc6 {[%clk 0:03:00.4]} 3. Nc3 {[%clk 0:02:59.4]} 3... Nf6 {[%clk 0:02:58.8]} 4.
a3 {[%clk 0:02:59.8]} 4... Be7 {[%clk 0:02:55.3]} 5. d4 {[%clk 0:02:59.5]} 5...
exd4 {[%clk 0:02:54.1]} 6. Nxd4 {[%clk 0:03:00.4]} 6... O-O {[%clk 0:02:51]} 7.
Bc4 {[%clk 0:02:58.7]} 7... d6 {[%clk 0:02:23.9]} 8. O-O {[%clk 0:02:54.5]} 8...
Bd7 {[%clk 0:02:22.9]} 9. Bf4 {[%clk 0:02:50.9]} 9... Ne5 {[%clk 0:02:14.1]} 10.
Bb3 {[%clk 0:02:48.9]} 10... Ng6 {[%clk 0:02:00.5]} 11. Bg3 {[%clk 0:02:39.8]}
11... Ng4 {[%clk 0:01:35]} 12. Nf5 {[%clk 0:02:14.8]} 12... Bxf5 {[%clk
0:01:26.7]} 13. exf5 {[%clk 0:02:15.7]} 13... N6e5 {[%clk 0:01:27.6]} 14. Nd5
{[%clk 0:01:54.3]} 14... Nf6 {[%clk 0:01:21.3]} 15. Nxe7+ {[%clk 0:01:49.7]}
15... Qxe7 {[%clk 0:01:21.4]} 16. Bh4 {[%clk 0:01:50.6]} 16... Qd7 {[%clk
0:01:13.9]} 17. Bxf6 {[%clk 0:01:45.3]} 17... gxf6 {[%clk 0:01:14.8]} 18. f4
{[%clk 0:01:43.3]} 18... Nc6 {[%clk 0:01:10]} 19. c3 {[%clk 0:01:32.4]} 19...
Rae8 {[%clk 0:00:51]} 20. Qh5 {[%clk 0:01:23.5]} 20... Re3 {[%clk 0:00:42.2]}
21. Rae1 {[%clk 0:01:02.9]} 21... Qe7 {[%clk 0:00:42.1]} 22. Rxe3 {[%clk
0:00:48.5]} 22... Qxe3+ {[%clk 0:00:41.9]} 23. Kh1 {[%clk 0:00:49.4]} 23... Nd4
{[%clk 0:00:19.9]} 24. cxd4 {[%clk 0:00:34.2]} 24... Qxb3 {[%clk 0:00:19.5]} 25.
Qg4+ {[%clk 0:00:34.6]} 25... Kh8 {[%clk 0:00:19.3]} 26. Qh4 {[%clk 0:00:35.5]}
26... Kg7 {[%clk 0:00:11.7]} 27. h3 {[%clk 0:00:35.5]} 27... Qxb2 {[%clk
0:00:09.4]} 28. Rf3 {[%clk 0:00:18.1]} 28... Qb1+ {[%clk 0:00:08.5]} 29. Kh2
{[%clk 0:00:17.9]} 29... Qxf5 {[%clk 0:00:09]} 30. Rg3+ {[%clk 0:00:18.1]} 30...
Kh8 {[%clk 0:00:08.3]} 31. Re3 {[%clk 0:00:15.1]} 31... Rg8 {[%clk 0:00:06.6]}
32. Qf2 {[%clk 0:00:11.6]} 32... h6 {[%clk 0:00:04.5]} 33. Re7 {[%clk
0:00:10.9]} 33... c5 {[%clk 0:00:04.6]} 34. dxc5 {[%clk 0:00:10.2]} 34... dxc5
{[%clk 0:00:05.2]} 35. Rxf7 {[%clk 0:00:10.5]} 35... Rg7 {[%clk 0:00:05.7]} 36.
Rf8+ {[%clk 0:00:09.8]} 36... Kh7 {[%clk 0:00:05.1]} 37. Ra8 {[%clk 0:00:06.2]}
37... b6 {[%clk 0:00:05.3]} 38. Re8 {[%clk 0:00:04.9]} 38... h5 {[%clk
0:00:05.3]} 39. Qh4 {[%clk 0:00:03.6]} 39... Qg6 {[%clk 0:00:05.7]} 40. Re2
{[%clk 0:00:03.3]} 40... c4 {[%clk 0:00:06]} 41. f5 {[%clk 0:00:02.9]} 41... Qg5
{[%clk 0:00:06.2]} 42. Qxc4 {[%clk 0:00:02.5]} 42... h4 {[%clk 0:00:06.2]} 43.
Qe4 {[%clk 0:00:02.2]} 43... Qg3+ {[%clk 0:00:06.4]} 44. Kh1 {[%clk 0:00:02.7]}
44... Kh6 {[%clk 0:00:07]} 45. Re3 {[%clk 0:00:02.1]} 45... Qf2 {[%clk
0:00:06.1]} 46. Re2 {[%clk 0:00:03]} 46... Qf1+ {[%clk 0:00:06]} 47. Kh2 {[%clk
0:00:03.9]} 47... Qc1 {[%clk 0:00:05.2]} 48. Qxh4# {[%clk 0:00:03.9]} 1-0

[Event "*** Titled Tuesday Blitz"]
[Site "Chess.com"]
[Date "2020.05.05"]
[Round "3"]
[White "TST2014"]
[Black "Jaka_Brilej"]
[Result "1/2-1/2"]
[WhiteElo "2558"]
[BlackElo "2365"]
[TimeControl "180+1"]
[EndTime "10:30:06 PDT"]
[Termination "Game drawn - insufficient material"]

1. d4 {[%clk 0:03:00.6]} 1... f5 {[%clk 0:02:59.5]} 2. c4 {[%clk 0:03:00.3]}
2... Nf6 {[%clk 0:02:57.4]} 3. Nf3 {[%clk 0:03:00.6]} 3... g6 {[%clk 0:02:57.3]}
4. g3 {[%clk 0:03:00.9]} 4... Bg7 {[%clk 0:02:57.4]} 5. Bg2 {[%clk 0:03:00.6]}
5... O-O {[%clk 0:02:58]} 6. O-O {[%clk 0:03:00.1]} 6... d6 {[%clk 0:02:58.5]}
7. Nc3 {[%clk 0:02:59.6]} 7... c6 {[%clk 0:02:59]} 8. b3 {[%clk 0:02:55.5]} 8...
Qa5 {[%clk 0:02:58.4]} 9. Qd2 {[%clk 0:02:46]} 9... e5 {[%clk 0:02:56.1]} 10.
dxe5 {[%clk 0:02:46]} 10... dxe5 {[%clk 0:02:55.8]} 11. e4 {[%clk 0:02:44.6]}
11... f4 {[%clk 0:02:51.4]} 12. Nd5 {[%clk 0:02:23.9]} 12... Qxd2 {[%clk
0:02:30.3]} 13. Nxf6+ {[%clk 0:02:21.6]} 13... Bxf6 {[%clk 0:02:31.2]} 14. Bxd2
{[%clk 0:02:20.7]} 14... g5 {[%clk 0:02:14.1]} 15. Bc3 {[%clk 0:02:18.2]} 15...
g4 {[%clk 0:02:13.8]} 16. Nxe5 {[%clk 0:02:09.9]} 16... f3 {[%clk 0:02:12.2]}
17. Bh1 {[%clk 0:02:07.3]} 17... Re8 {[%clk 0:01:57.3]} 18. Rfd1 {[%clk
0:02:00.9]} 18... Nd7 {[%clk 0:01:24.1]} 19. Nxd7 {[%clk 0:01:58.1]} 19... Bxc3
{[%clk 0:01:23.4]} 20. Rac1 {[%clk 0:01:58.3]} 20... Bg7 {[%clk 0:01:16.6]} 21.
Nc5 {[%clk 0:01:47.6]} 21... b6 {[%clk 0:00:56.6]} 22. Nd3 {[%clk 0:01:44.5]}
22... Rxe4 {[%clk 0:00:52.5]} 23. Nf4 {[%clk 0:01:44.4]} 23... Bf5 {[%clk
0:00:51.4]} 24. h3 {[%clk 0:01:44.1]} 24... Rae8 {[%clk 0:00:40.1]} 25. hxg4
{[%clk 0:01:43.4]} 25... Bxg4 {[%clk 0:00:41]} 26. Rd3 {[%clk 0:01:37.1]} 26...
Re1+ {[%clk 0:00:37.1]} 27. Rxe1 {[%clk 0:01:36.6]} 27... Rxe1+ {[%clk
0:00:37.6]} 28. Kh2 {[%clk 0:01:37]} 28... Re2 {[%clk 0:00:33.6]} 29. Nxe2
{[%clk 0:01:32]} 29... fxe2 {[%clk 0:00:33.4]} 30. Re3 {[%clk 0:01:32.4]} 30...
Bd4 {[%clk 0:00:29.9]} 31. Re4 {[%clk 0:01:31.7]} 31... Bxf2 {[%clk 0:00:29]}
32. Rxg4+ {[%clk 0:01:30.2]} 32... Kf8 {[%clk 0:00:27.5]} 33. Rf4+ {[%clk
0:01:29]} 33... Kg7 {[%clk 0:00:24.7]} 34. Re4 {[%clk 0:01:24.8]} 34... e1=Q
{[%clk 0:00:21.9]} 35. Rxe1 {[%clk 0:01:24.9]} 35... Bxe1 {[%clk 0:00:22.5]} 36.
Bxc6 {[%clk 0:01:25.5]} 36... a5 {[%clk 0:00:19.6]} 37. Kh3 {[%clk 0:01:21.6]}
37... Bf2 {[%clk 0:00:19.5]} 38. g4 {[%clk 0:01:20.7]} 38... h6 {[%clk
0:00:19.4]} 39. Kg2 {[%clk 0:01:20.6]} 39... Bc5 {[%clk 0:00:19.6]} 40. Kf3
{[%clk 0:01:20.5]} 40... Bd4 {[%clk 0:00:20.2]} 41. Ke4 {[%clk 0:01:20.9]} 41...
Bc5 {[%clk 0:00:20.9]} 42. Kd5 {[%clk 0:01:21.3]} 42... Bg1 {[%clk 0:00:21.3]}
43. Bd7 {[%clk 0:01:21.2]} 43... Bf2 {[%clk 0:00:21.7]} 44. Be8 {[%clk
0:01:21.6]} 44... Bg1 {[%clk 0:00:21.9]} 45. Kc6 {[%clk 0:01:21.2]} 45... Bf2
{[%clk 0:00:22.6]} 46. Kb5 {[%clk 0:01:21.3]} 46... Bg1 {[%clk 0:00:23]} 47. a3
{[%clk 0:01:21.2]} 47... Bf2 {[%clk 0:00:23.4]} 48. b4 {[%clk 0:01:21.7]} 48...
axb4 {[%clk 0:00:24]} 49. axb4 {[%clk 0:01:22.6]} 49... Bg1 {[%clk 0:00:23.8]}
50. c5 {[%clk 0:01:22.8]} 50... bxc5 {[%clk 0:00:22.8]} 51. bxc5 {[%clk
0:01:23.7]} 51... Kf6 {[%clk 0:00:22]} 52. c6 {[%clk 0:01:24]} 52... Bh2 {[%clk
0:00:20.8]} 53. Kb6 {[%clk 0:01:23.2]} 53... Ke7 {[%clk 0:00:18.5]} 54. c7
{[%clk 0:00:51.7]} 54... Bxc7+ {[%clk 0:00:17.3]} 55. Kxc7 {[%clk 0:00:52.6]}
55... Kxe8 {[%clk 0:00:17.6]} 56. Kd6 {[%clk 0:00:52.7]} 56... Kf7 {[%clk
0:00:18.1]} 57. Ke5 {[%clk 0:00:53]} 57... Kg6 {[%clk 0:00:18.7]} 58. Kf4 {[%clk
0:00:53]} 58... h5 {[%clk 0:00:19.2]} 59. g5 {[%clk 0:00:51.1]} 59... h4 {[%clk
0:00:19]} 60. Kg4 {[%clk 0:00:51.6]} 60... h3 {[%clk 0:00:19.6]} 61. Kxh3 {[%clk
0:00:42.8]} 61... Kxg5 {[%clk 0:00:20.5]} 1/2-1/2

[Event "*** Titled Tuesday Blitz"]
[Site "Chess.com"]
[Date "2020.05.05"]
[Round "3"]
[White "Anton_Demchenko"]
[Black "tioloko"]
[Result "1-0"]
[WhiteElo "2854"]
[BlackElo "2622"]
[TimeControl "180+1"]
[EndTime "10:30:07 PDT"]
[Termination "Anton_Demchenko won on time"]

1. d4 {[%clk 0:03:00.9]} 1... d5 {[%clk 0:02:58.9]} 2. Nf3 {[%clk 0:03:00.8]}
2... Nf6 {[%clk 0:02:57.9]} 3. Bf4 {[%clk 0:03:01]} 3... e6 {[%clk 0:02:55.7]}
4. e3 {[%clk 0:03:01.4]} 4... Bd6 {[%clk 0:02:55.7]} 5. Ne5 {[%clk 0:03:01.8]}
5... O-O {[%clk 0:02:54.4]} 6. Nd2 {[%clk 0:03:01.7]} 6... Nbd7 {[%clk 0:02:54]}
7. c3 {[%clk 0:03:01.2]} 7... Qe7 {[%clk 0:02:53.7]} 8. Bd3 {[%clk 0:03:00.2]}
8... c5 {[%clk 0:02:52.8]} 9. Qf3 {[%clk 0:02:59.2]} 9... Ne8 {[%clk 0:02:47.6]}
10. Qg3 {[%clk 0:02:33.3]} 10... f5 {[%clk 0:01:59.9]} 11. h4 {[%clk 0:02:26.5]}
11... Ndf6 {[%clk 0:01:49.2]} 12. h5 {[%clk 0:02:23.7]} 12... Ne4 {[%clk
0:01:27.2]} 13. Bxe4 {[%clk 0:02:23.5]} 13... fxe4 {[%clk 0:01:26.4]} 14. h6
{[%clk 0:02:14.6]} 14... g6 {[%clk 0:01:24.2]} 15. f3 {[%clk 0:02:14.6]} 15...
Bxe5 {[%clk 0:00:54.7]} 16. Bxe5 {[%clk 0:02:12.9]} 16... exf3 {[%clk 0:00:55]}
17. gxf3 {[%clk 0:02:09]} 17... Rf5 {[%clk 0:00:48.7]} 18. e4 {[%clk 0:01:56.5]}
18... Rf7 {[%clk 0:00:43.7]} 19. O-O-O {[%clk 0:01:55.3]} 19... b5 {[%clk
0:00:42.2]} 20. dxc5 {[%clk 0:01:39.9]} 20... Qxc5 {[%clk 0:00:38.4]} 21. Rhe1
{[%clk 0:01:04.8]} 21... Bd7 {[%clk 0:00:34]} 22. Nb3 {[%clk 0:01:00.1]} 22...
Qe7 {[%clk 0:00:32.4]} 23. exd5 {[%clk 0:00:56.7]} 23... exd5 {[%clk 0:00:33.3]}
24. Bd4 {[%clk 0:00:52.5]} 24... Qf8 {[%clk 0:00:25.1]} 25. Qe5 {[%clk 0:00:40]}
25... Qxh6+ {[%clk 0:00:23.3]} 26. Kb1 {[%clk 0:00:40.6]} 26... Bf5+ {[%clk
0:00:21.7]} 27. Ka1 {[%clk 0:00:40.6]} 27... Nf6 {[%clk 0:00:21.7]} 28. Qd6
{[%clk 0:00:36.3]} 28... Raf8 {[%clk 0:00:17.4]} 29. Nc5 {[%clk 0:00:30.4]}
29... a5 {[%clk 0:00:15.5]} 30. Qb6 {[%clk 0:00:15.9]} 30... b4 {[%clk
0:00:15.4]} 31. cxb4 {[%clk 0:00:16.8]} 31... axb4 {[%clk 0:00:16.2]} 32. Qxb4
{[%clk 0:00:17.7]} 32... Qf4 {[%clk 0:00:15.7]} 33. Qc3 {[%clk 0:00:18.2]} 33...
Nh5 {[%clk 0:00:14.1]} 34. Be5 {[%clk 0:00:18.4]} 34... Qh4 {[%clk 0:00:13.1]}
35. Rh1 {[%clk 0:00:18.2]} 35... Qf2 {[%clk 0:00:12.2]} 36. Rdf1 {[%clk
0:00:17.7]} 36... Qe2 {[%clk 0:00:10.3]} 37. Re1 {[%clk 0:00:18.2]} 37... Qb5
{[%clk 0:00:10.2]} 38. Bd4 {[%clk 0:00:13.7]} 38... Qc4 {[%clk 0:00:09.3]} 39.
Qd2 {[%clk 0:00:11.3]} 39... Ra8 {[%clk 0:00:06.7]} 40. b3 {[%clk 0:00:11.7]}
40... Qb5 {[%clk 0:00:05.1]} 41. a4 {[%clk 0:00:09.8]} 41... Ng3 {[%clk
0:00:04.4]} 42. Rhg1 {[%clk 0:00:09.1]} 42... Nh5 {[%clk 0:00:03.1]} 43. Kb2
{[%clk 0:00:09]} 43... Qc6 {[%clk 0:00:01.8]} 44. Rc1 {[%clk 0:00:08.8]} 1-0

[Event "*** Titled Tuesday Blitz"]
[Site "Chess.com"]
[Date "2020.05.05"]
[Round "3"]
[White "Jospem"]
[Black "asms9699"]
[Result "1-0"]
[WhiteElo "2851"]
[BlackElo "2618"]
[TimeControl "180+1"]
[EndTime "10:30:07 PDT"]
[Termination "Jospem won on time"]

1. c4 {[%clk 0:03:00.9]} 1... c6 {[%clk 0:02:59.4]} 2. Nf3 {[%clk 0:02:56.2]}
2... d5 {[%clk 0:02:59.4]} 3. g3 {[%clk 0:02:57.1]} 3... Nf6 {[%clk 0:02:59.2]}
4. Bg2 {[%clk 0:02:57.3]} 4... e6 {[%clk 0:02:54.8]} 5. O-O {[%clk 0:02:56.9]}
5... dxc4 {[%clk 0:02:51.6]} 6. a4 {[%clk 0:02:54]} 6... c5 {[%clk 0:02:48.7]}
7. Na3 {[%clk 0:02:54.1]} 7... Nc6 {[%clk 0:02:49.1]} 8. Nxc4 {[%clk 0:02:54.6]}
8... Be7 {[%clk 0:02:49.7]} 9. a5 {[%clk 0:02:54.6]} 9... O-O {[%clk 0:02:49.3]}
10. d3 {[%clk 0:02:55.2]} 10... Bd7 {[%clk 0:02:48]} 11. Qb3 {[%clk 0:02:52.2]}
11... Qc8 {[%clk 0:02:38.7]} 12. Bf4 {[%clk 0:02:49]} 12... Nd5 {[%clk
0:02:26.3]} 13. Nd6 {[%clk 0:02:35.6]} 13... Qc7 {[%clk 0:02:03]} 14. Nb5 {[%clk
0:02:22.3]} 14... Qd8 {[%clk 0:01:49.1]} 15. Bd2 {[%clk 0:02:20.5]} 15... b6
{[%clk 0:01:30.9]} 16. a6 {[%clk 0:01:58.7]} 16... Ncb4 {[%clk 0:01:02.7]} 17.
Nc3 {[%clk 0:01:58]} 17... Rc8 {[%clk 0:01:02.4]} 18. Rfd1 {[%clk 0:01:47.9]}
18... Bc6 {[%clk 0:00:59.1]} 19. Ne5 {[%clk 0:01:37.5]} 19... Ba8 {[%clk
0:00:58.8]} 20. Nb5 {[%clk 0:01:32.8]} 20... Bf6 {[%clk 0:00:52.1]} 21. Nc4
{[%clk 0:01:18.5]} 21... Qd7 {[%clk 0:00:42.1]} 22. Ncd6 {[%clk 0:01:17.9]}
22... Rcd8 {[%clk 0:00:29.5]} 23. e4 {[%clk 0:01:07.9]} 23... Nc7 {[%clk
0:00:25.7]} 24. Bxb4 {[%clk 0:00:38.5]} 24... Nxb5 {[%clk 0:00:20.4]} 25. e5
{[%clk 0:00:14.6]} 25... Bxg2 {[%clk 0:00:18.1]} 26. Kxg2 {[%clk 0:00:12.3]}
26... Nxd6 {[%clk 0:00:15.6]} 27. Bc3 {[%clk 0:00:10]} 27... Qc6+ {[%clk
0:00:10.7]} 28. Kg1 {[%clk 0:00:08.7]} 28... Bxe5 {[%clk 0:00:10.1]} 29. Bxe5
{[%clk 0:00:09.2]} 29... Nf5 {[%clk 0:00:10.9]} 30. Qc4 {[%clk 0:00:07.7]} 30...
Nd4 {[%clk 0:00:10]} 31. Bxd4 {[%clk 0:00:08.2]} 31... Rxd4 {[%clk 0:00:10.9]}
32. Qc2 {[%clk 0:00:08.2]} 32... Rfd8 {[%clk 0:00:11.4]} 33. Ra3 {[%clk
0:00:07.5]} 33... g6 {[%clk 0:00:11.8]} 34. Rc3 {[%clk 0:00:04.6]} 34... h5
{[%clk 0:00:12.3]} 35. h4 {[%clk 0:00:04.4]} 35... Qb5 {[%clk 0:00:12.7]} 36.
Ra3 {[%clk 0:00:03.6]} 36... c4 {[%clk 0:00:12.2]} 37. Qc3 {[%clk 0:00:01.9]}
37... Rxd3 {[%clk 0:00:10.5]} 38. Rxd3 {[%clk 0:00:02.4]} 38... Rxd3 {[%clk
0:00:09.1]} 39. Qf6 {[%clk 0:00:02.7]} 39... Rxa3 {[%clk 0:00:08.7]} 40. bxa3
{[%clk 0:00:03.3]} 40... Qxa6 {[%clk 0:00:07.3]} 41. Qd8+ {[%clk 0:00:03.6]}
41... Kg7 {[%clk 0:00:07.6]} 42. Qd4+ {[%clk 0:00:03.9]} 42... Kh7 {[%clk
0:00:08]} 43. Qd7 {[%clk 0:00:04.3]} 43... Kg8 {[%clk 0:00:07.1]} 44. Qd8+
{[%clk 0:00:04.5]} 44... Kg7 {[%clk 0:00:07.6]} 45. Qd4+ {[%clk 0:00:04.7]}
45... Kh7 {[%clk 0:00:04.5]} 46. Qd7 {[%clk 0:00:05]} 46... Qxa3 {[%clk
0:00:03.1]} 47. Qxf7+ {[%clk 0:00:05.1]} 47... Kh8 {[%clk 0:00:03.8]} 48. Qxg6
{[%clk 0:00:02.5]} 1-0

[Event "*** Titled Tuesday Blitz"]
[Site "Chess.com"]
[Date "2020.05.05"]
[Round "3"]
[White "Man-Chuk"]
[Black "djano"]
[Result "1-0"]
[WhiteElo "2751"]
[BlackElo "2440"]
[TimeControl "180+1"]
[EndTime "10:30:07 PDT"]
[Termination "Man-Chuk won by resignation"]

1. c4 {[%clk 0:02:57.1]} 1... Nf6 {[%clk 0:02:58.4]} 2. Nc3 {[%clk 0:02:54.5]}
2... e5 {[%clk 0:02:58.1]} 3. Nf3 {[%clk 0:02:54.2]} 3... Nc6 {[%clk 0:02:55.3]}
4. e4 {[%clk 0:02:53.4]} 4... g6 {[%clk 0:02:53]} 5. d4 {[%clk 0:02:48.9]} 5...
exd4 {[%clk 0:02:52.9]} 6. Nxd4 {[%clk 0:02:49.8]} 6... Bg7 {[%clk 0:02:53.3]}
7. Nxc6 {[%clk 0:02:47.1]} 7... bxc6 {[%clk 0:02:54.2]} 8. e5 {[%clk 0:02:47]}
8... Ng8 {[%clk 0:02:46.7]} 9. Bf4 {[%clk 0:02:46.2]} 9... Ne7 {[%clk
0:02:45.2]} 10. h4 {[%clk 0:02:31]} 10... Rb8 {[%clk 0:02:44.1]} 11. Qd2 {[%clk
0:02:29.3]} 11... h6 {[%clk 0:02:30.2]} 12. O-O-O {[%clk 0:02:21.3]} 12... c5
{[%clk 0:02:21.3]} 13. Ne4 {[%clk 0:02:18.7]} 13... Nc6 {[%clk 0:02:10.4]} 14.
Re1 {[%clk 0:01:45.8]} 14... O-O {[%clk 0:02:05.2]} 15. Bxh6 {[%clk 0:01:13.4]}
15... Bxe5 {[%clk 0:02:04.5]} 16. Nc3 {[%clk 0:01:08]} 16... Qf6 {[%clk
0:01:57.3]} 17. h5 {[%clk 0:00:48.2]} 17... Ba6 {[%clk 0:01:29.3]} 18. Rxe5
{[%clk 0:00:37]} 18... Nxe5 {[%clk 0:01:24.6]} 19. Nd5 {[%clk 0:00:32.6]} 19...
Qd6 {[%clk 0:01:14.7]} 20. Bxf8 {[%clk 0:00:22.8]} 20... Rxf8 {[%clk 0:01:15.6]}
21. hxg6 {[%clk 0:00:20.1]} 21... fxg6 {[%clk 0:00:48]} 22. Qh6 {[%clk
0:00:19.8]} 22... Rxf2 {[%clk 0:00:24.7]} 23. Qh8+ {[%clk 0:00:18.4]} 23... Kf7
{[%clk 0:00:22.9]} 24. Rh7+ {[%clk 0:00:18]} 24... Ke6 {[%clk 0:00:22.8]} 25.
Qe8+ {[%clk 0:00:06.6]} 25... Kf5 {[%clk 0:00:22.2]} 26. Rf7+ {[%clk 0:00:07.1]}
26... Nxf7 {[%clk 0:00:20.5]} 27. Qxf7+ {[%clk 0:00:08]} 27... Kg5 {[%clk
0:00:18.6]} 28. Qxf2 {[%clk 0:00:08.3]} 28... Qe5 {[%clk 0:00:18.4]} 29. Qe3+
{[%clk 0:00:08.6]} 29... Qxe3+ {[%clk 0:00:18.1]} 30. Nxe3 {[%clk 0:00:09.5]}
30... c6 {[%clk 0:00:17.7]} 31. Kd2 {[%clk 0:00:09.7]} 31... Kf4 {[%clk
0:00:18.2]} 32. Bd3 {[%clk 0:00:09]} 32... g5 {[%clk 0:00:18]} 33. Ke2 {[%clk
0:00:09.4]} 33... g4 {[%clk 0:00:18.3]} 34. Kf2 {[%clk 0:00:08.8]} 34... g3+
{[%clk 0:00:18.1]} 35. Ke2 {[%clk 0:00:09.3]} 35... d6 {[%clk 0:00:18.7]} 36.
Kd2 {[%clk 0:00:09]} 36... Bc8 {[%clk 0:00:18.5]} 37. Be2 {[%clk 0:00:09.3]}
37... Be6 {[%clk 0:00:15.6]} 38. Bf3 {[%clk 0:00:09.5]} 38... d5 {[%clk
0:00:15.5]} 39. cxd5 {[%clk 0:00:09.3]} 39... cxd5 {[%clk 0:00:16.4]} 40. Bxd5
{[%clk 0:00:09.3]} 40... Bd7 {[%clk 0:00:16.8]} 41. Bf3 {[%clk 0:00:08.8]} 41...
Bb5 {[%clk 0:00:15.8]} 42. Nd5+ {[%clk 0:00:08.2]} 42... Ke5 {[%clk 0:00:15.3]}
43. Ke3 {[%clk 0:00:08.3]} 43... Bc4 {[%clk 0:00:14.9]} 44. Nc3 {[%clk
0:00:08.8]} 44... a5 {[%clk 0:00:14.9]} 45. a3 {[%clk 0:00:09.2]} 45... Be6
{[%clk 0:00:15.2]} 46. Ne4 {[%clk 0:00:09.4]} 46... c4 {[%clk 0:00:14.3]} 47.
Nxg3 {[%clk 0:00:09.5]} 47... c3 {[%clk 0:00:14.7]} 48. bxc3 {[%clk 0:00:09.2]}
1-0

[Event "*** Titled Tuesday Blitz"]
[Site "Chess.com"]
[Date "2020.05.05"]
[Round "3"]
[White "Zkid"]
[Black "Nikolaj_6"]
[Result "1-0"]
[WhiteElo "2814"]
[BlackElo "2605"]
[TimeControl "180+1"]
[EndTime "10:30:08 PDT"]
[Termination "Zkid won by resignation"]

1. c4 {[%clk 0:03:00.9]} 1... e5 {[%clk 0:02:58.7]} 2. g3 {[%clk 0:03:00.9]}
2... Nf6 {[%clk 0:02:58.8]} 3. Bg2 {[%clk 0:03:00.1]} 3... d5 {[%clk 0:02:58.9]}
4. cxd5 {[%clk 0:02:59.9]} 4... Nxd5 {[%clk 0:02:59.5]} 5. Nc3 {[%clk
0:02:57.3]} 5... Nb6 {[%clk 0:02:59.3]} 6. Nf3 {[%clk 0:02:56.8]} 6... Nc6
{[%clk 0:02:59.2]} 7. Rb1 {[%clk 0:02:57.4]} 7... a5 {[%clk 0:02:58.1]} 8. O-O
{[%clk 0:02:57.1]} 8... Be7 {[%clk 0:02:57.5]} 9. d3 {[%clk 0:02:56.1]} 9... O-O
{[%clk 0:02:56.9]} 10. a3 {[%clk 0:02:53.1]} 10... Re8 {[%clk 0:02:56.4]} 11.
Be3 {[%clk 0:02:51.3]} 11... Bf8 {[%clk 0:02:54.4]} 12. Na4 {[%clk 0:02:49.3]}
12... Nd5 {[%clk 0:02:49.3]} 13. Bd2 {[%clk 0:02:47.4]} 13... Bg4 {[%clk
0:02:46.9]} 14. Rc1 {[%clk 0:02:45.9]} 14... Nd4 {[%clk 0:02:44.5]} 15. e3
{[%clk 0:02:33.2]} 15... Nxf3+ {[%clk 0:02:36.7]} 16. Bxf3 {[%clk 0:02:34.1]}
16... Bxf3 {[%clk 0:02:35.3]} 17. Qxf3 {[%clk 0:02:35]} 17... c6 {[%clk
0:02:34.9]} 18. Rfd1 {[%clk 0:02:31.1]} 18... Qf6 {[%clk 0:02:14.4]} 19. Qe4
{[%clk 0:02:24.1]} 19... Qe6 {[%clk 0:02:13]} 20. Nc5 {[%clk 0:02:19.5]} 20...
Bxc5 {[%clk 0:02:12.2]} 21. Rxc5 {[%clk 0:02:20.4]} 21... a4 {[%clk 0:02:07.3]}
22. d4 {[%clk 0:02:10.2]} 22... exd4 {[%clk 0:01:59.4]} 23. Qxd4 {[%clk
0:02:11.1]} 23... f5 {[%clk 0:01:50.1]} 24. Bc3 {[%clk 0:02:06.9]} 24... Nxc3
{[%clk 0:01:49.2]} 25. Rxc3 {[%clk 0:02:00.8]} 25... Qe7 {[%clk 0:01:35.1]} 26.
Qc4+ {[%clk 0:01:48.7]} 26... Qf7 {[%clk 0:01:33.9]} 27. Rd7 {[%clk 0:01:47.5]}
27... Qxc4 {[%clk 0:01:28.1]} 28. Rxc4 {[%clk 0:01:48.4]} 28... Ra7 {[%clk
0:01:05]} 29. Rb4 {[%clk 0:01:38.5]} 29... Rb8 {[%clk 0:01:04.4]} 30. Rc7 {[%clk
0:01:36.5]} 30... Ra5 {[%clk 0:00:58.5]} 31. Rbxb7 {[%clk 0:01:30]} 31... Rxb7
{[%clk 0:00:58.6]} 32. Rxb7 {[%clk 0:01:30.9]} 32... Rc5 {[%clk 0:00:58.7]} 33.
h4 {[%clk 0:01:20.2]} 33... h5 {[%clk 0:00:57.9]} 34. Kf1 {[%clk 0:00:47.6]}
34... Kh7 {[%clk 0:00:56.4]} 35. Ke1 {[%clk 0:00:44.9]} 35... Rc2 {[%clk
0:00:52.9]} 36. Rb4 {[%clk 0:00:44.2]} 36... g6 {[%clk 0:00:47]} 37. Rxa4 {[%clk
0:00:33.7]} 37... Rxb2 {[%clk 0:00:46.5]} 38. Rf4 {[%clk 0:00:34.3]} 38... Ra2
{[%clk 0:00:42.7]} 39. a4 {[%clk 0:00:34]} 39... Kg7 {[%clk 0:00:43.1]} 40. Kd1
{[%clk 0:00:34.5]} 40... Kf6 {[%clk 0:00:43]} 41. Kc1 {[%clk 0:00:34.8]} 41...
Ke5 {[%clk 0:00:42.8]} 42. Kb1 {[%clk 0:00:35.2]} 42... Re2 {[%clk 0:00:36.1]}
43. a5 {[%clk 0:00:35.2]} 43... Kd6 {[%clk 0:00:36.3]} 44. a6 {[%clk 0:00:30.7]}
44... Kc7 {[%clk 0:00:36.5]} 45. Rb4 {[%clk 0:00:30.9]} 45... Re1+ {[%clk
0:00:34]} 46. Kb2 {[%clk 0:00:26.7]} 46... Re2+ {[%clk 0:00:34.3]} 47. Kb3
{[%clk 0:00:24.8]} 47... Re1 {[%clk 0:00:34.6]} 48. Rb7+ {[%clk 0:00:18.8]}
48... Kd6 {[%clk 0:00:34.2]} 49. Rg7 {[%clk 0:00:17.9]} 49... Ra1 {[%clk
0:00:34.1]} 50. a7 {[%clk 0:00:17.7]} 50... Kd5 {[%clk 0:00:32.5]} 51. f3 {[%clk
0:00:17.8]} 51... c5 {[%clk 0:00:32.6]} 52. Kb2 {[%clk 0:00:17.1]} 52... Ra5
{[%clk 0:00:30.6]} 53. Kc2 {[%clk 0:00:17.1]} 53... Kc4 {[%clk 0:00:28.7]} 54.
e4 {[%clk 0:00:15]} 54... fxe4 {[%clk 0:00:28]} 55. fxe4 {[%clk 0:00:15.9]}
55... Kd4 {[%clk 0:00:27.8]} 56. Re7 {[%clk 0:00:16.5]} 56... c4 {[%clk
0:00:27.7]} 57. e5 {[%clk 0:00:16.9]} 57... Ra2+ {[%clk 0:00:27.3]} 58. Kb1
{[%clk 0:00:16.7]} 58... Ra6 {[%clk 0:00:26.7]} 59. e6 {[%clk 0:00:16.2]} 59...
c3 {[%clk 0:00:25.9]} 60. Rd7+ {[%clk 0:00:15.8]} 60... Kc4 {[%clk 0:00:25.1]}
61. e7 {[%clk 0:00:15.4]} 61... Rb6+ {[%clk 0:00:21.8]} 62. Kc1 {[%clk
0:00:15.1]} 62... Ra6 {[%clk 0:00:20.1]} 63. e8=Q {[%clk 0:00:15.1]} 1-0